bitfinex-derivatives/quotes_SOLF0:USTF0_20240920
["timestamp","ask_amount","ask_price","bid_price","bid_amount"]
[1726809648658,3.3437,149.51,149.5,16.06]
[1726809648854,18.5582,149.59,149.5,16.06]
[1726809649255,3.3436,149.52,149.5,16.06]
[1726809649857,3.3437,149.51,149.5,16.06]
[1726809650057,2.4982,149.59,149.5,16.06]
[1726809650455,3.3437,149.51,149.5,16.06]
[1726809650756,16.06,149.57,149.49,3.29421024]
[1726809650958,2.3846,149.56,149.47,16.06]
[1726809651555,3.3439,149.51,149.47,16.06]
[1726809651753,3.3439,149.51,149.47,19.4046]
[1726809652163,3.3439,149.51,149.49,16.06]
[1726809652358,3.3439,149.5,149.49,19.34517181]
[1726809652555,16.06,149.58,149.49,19.34517181]
[1726809653054,16.06,149.58,149.51,16.06]
[1726809653452,3.3426,149.56,149.51,16.06]
[1726809653656,16.06,149.58,149.51,16.06]
[1726809653859,16.06,149.58,149.51,19.47618561]
[1726809654259,3.3432,149.54,149.51,19.47618561]
[1726809654660,16.06,149.58,149.51,19.47618561]
[1726809655162,3.3432,149.54,149.51,19.47618561]
[1726809655362,2.4982,149.59,149.51,19.47618561]
[1726809655659,18.5582,149.59,149.51,19.47618561]
[1726809656754,3.3433,149.53,149.51,19.47618561]
[1726809657853,2.4982,149.59,149.52,16.06]
[1726809658455,3.3429,149.55,149.52,16.06]
[1726809658652,2.4982,149.59,149.52,16.06]
[1726809660563,2.4982,149.59,149.5,16.06]
[1726809660961,3.3434,149.53,149.5,16.06]
[1726809661163,2.4982,149.59,149.5,16.06]
[1726809661361,3.343,149.55,149.5,19.4039]
[1726809661560,3.343,149.55,149.5,16.06]
[1726809662466,3.343,149.55,149.52,16.06]
[1726809662663,3.3426,149.56,149.52,16.06]
[1726809662967,2.4982,149.59,149.52,16.06]
[1726809663166,6.6778,149.73,149.56,16.06]
[1726809663362,3.40903887,149.61,149.56,16.06]
[1726809663558,3.3419,149.6,149.56,16.06]
[1726809663761,3.40703197,149.63,149.56,16.06]
[1726809664467,5.1086,149.66,149.56,16.06]
[1726809664668,16.06,149.64,149.54,16.06]
[1726809664867,3.27491165,149.63,149.54,16.06]
[1726809665161,3.3418,149.6,149.56,16.06]
[1726809665366,16.06,149.65,149.56,16.06]
[1726809665562,5.1086,149.66,149.56,16.06]
[1726809665762,3.3411,149.63,149.56,16.06]
[1726809665959,3.26178731,149.64,149.53,2.425]
[1726809666161,3.26178731,149.64,149.55,19.4027]
[1726809666362,3.3418,149.6,149.55,19.4027]
[1726809666563,5.1086,149.66,149.57,16.06]
[1726809666868,21.1686,149.66,149.57,19.4022]
[1726809667370,3.3414,149.62,149.57,19.4022]
[1726809667565,3.3414,149.62,149.57,22.82781222]
[1726809667765,3.3414,149.62,149.57,19.4022]
[1726809668161,2.5952,149.66,149.6,16.06]
[1726809668767,3.3408,149.64,149.6,16.06]
[1726809668969,3.3408,149.64,149.6,19.42977331]
[1726809669168,2.4881,149.71,149.62,16.06]
[1726809669365,2.5432,149.74,149.67,16.06]
[1726809669675,18.6032,149.74,149.65,16.06]
[1726809669867,5.90996459,149.74,149.61,5.79199007]
[1726809670074,16.06,149.71,149.62,16.06]
[1726809670275,3.3405,149.66,149.62,19.48225887]
[1726809670476,19.33951153,149.71,149.62,16.06]
[1726809671273,3.27951153,149.71,149.62,16.06]
[1726809671580,16.06,149.71,149.62,16.06]
[1726809671776,19.37661915,149.71,149.62,16.06]
[1726809671977,2.5066,149.7,149.62,16.06]
[1726809672184,16.06,149.69,149.6,16.06]
[1726809672681,2.4257,149.68,149.6,16.06]
[1726809672877,3.3407,149.65,149.62,16.06]
[1726809673082,2.4257,149.68,149.6,16.06]
[1726809673474,18.4857,149.68,149.58,16.06]
[1726809673982,3.3408,149.65,149.6,16.06]
[1726809674183,18.4857,149.68,149.6,16.06]
[1726809674386,2.4257,149.68,149.6,16.06]
[1726809674982,2.4257,149.68,149.62,16.06]
[1726809675179,2.5066,149.7,149.66,16.06]
[1726809675380,3.31661915,149.71,149.66,16.06]
[1726809675580,4.9604,149.74,149.64,16.06]
[1726809675781,16.06,149.72,149.64,16.06]
[1726809675975,16.06,149.72,149.62,3.37421966]
[1726809676286,16.06,149.69,149.61,2.3596]
[1726809676481,2.3665,149.68,149.61,2.3596]
[1726809676983,26.831,149.78,149.61,2.3596]
[1726809676984,133.72,149.81,149.61,2.3596]
[1726809677177,3.3404,149.66,149.61,2.3596]
[1726809677580,3.28063988,149.67,149.61,5.701]
[1726809677782,16.06,149.7,149.61,2.3596]
[1726809677981,19.42151955,149.7,149.61,2.3596]
[1726809678181,22.76111955,149.7,149.62,19.4011]
[1726809678384,6.711,149.8,149.64,16.06]
[1726809678581,3.3388,149.73,149.66,3.3403]
[1726809678782,3.35126911,149.72,149.66,3.3403]
[1726809678977,3.35126911,149.72,149.64,16.06]
[1726809679179,16.06,149.74,149.64,16.06]
[1726809679387,19.32705294,149.74,149.64,16.06]
[1726809679783,3.3392,149.72,149.65,3.3406]
[1726809679976,19.32705294,149.74,149.64,16.06]
[1726809680184,3.26705294,149.74,149.64,16.06]
[1726809680379,381.30068,149.75,149.64,19.4008]
[1726809680380,3.3393,149.71,149.64,19.4008]
[1726809680582,3.27741286,149.72,149.64,16.06]
[1726809681086,16.06,149.73,149.64,16.06]
[1726809681282,6.64782683,149.72,149.65,3.3405]
[1726809681479,6.64782683,149.72,149.64,16.06]
[1726809682891,6.64782683,149.72,149.66,3.3403]
[1726809683386,16.06,149.71,149.64,19.4006]
[1726809683592,16.06,149.71,149.64,16.06]
[1726809683881,3.3392,149.72,149.66,3.3403]
[1726809684088,3.36452115,149.74,149.66,3.3403]
[1726809684294,16.06,149.73,149.66,3.3403]
[1726809684683,16.06,149.73,149.64,16.06]
[1726809684886,3.42266264,149.73,149.62,16.06]
[1726809685087,16.06,149.7,149.62,16.06]
[1726809685286,6.71135477,149.69,149.64,3.3407]
[1726809685488,16.06,149.7,149.62,16.06]
[1726809685895,10.26,149.68,149.64,10.26]
[1726809686394,10.26,149.67,149.63,10.26]
[1726809686787,3.3398,149.69,149.64,3.3408]
[1726809686990,6.73417977,149.69,149.64,3.3408]
[1726809687190,10.26,149.68,149.64,13.6008]
[1726809687490,10.26,149.68,149.65,3.3406]
[1726809687786,10.26,149.68,149.64,10.26]
[1726809687990,6.61721286,149.69,149.64,10.26]
[1726809688193,10.26,149.68,149.64,13.6007]
[1726809688388,13.6,149.68,149.64,13.6007]
[1726809688586,10.26,149.68,149.64,13.6007]
[1726809688791,3.27741286,149.69,149.65,3.3405]
[1726809688987,10.26,149.69,149.66,10.26]
[1726809689383,13.5999,149.69,149.64,3.3407]
[1726809689589,16.95417553,149.69,149.65,10.26]
[1726809689894,322.94910087,149.75,149.65,10.26]
[1726809690096,10.26,149.68,149.65,10.26]
[1726809690289,10.26,149.68,149.64,10.26]
[1726809690595,10.26,149.68,149.61,7.0132]
[1726809690596,3.32720875,149.69,149.65,10.26]
[1726809690790,322.94910087,149.75,149.66,10.26]
[1726809690991,10.26,149.7,149.66,10.26]
[1726809691191,10.26,149.71,149.67,10.26]
[1726809691497,10.26,149.72,149.68,10.26]
[1726809691896,10.26,149.72,149.67,10.26]
[1726809692093,10.26,149.71,149.66,10.26]
[1726809692397,10.26,149.72,149.68,10.26]
[1726809692792,10.26,149.72,149.68,13.5997]
[1726809692989,10.26,149.71,149.67,10.26]
[1726809693296,13.5993,149.71,149.67,10.26]
[1726809693892,3.3393,149.71,149.67,10.26]
[1726809694097,10.26,149.7,149.67,10.26]
[1726809694997,13.5995,149.7,149.67,10.26]
[1726809695196,5.0118,149.74,149.67,10.26]
[1726809695495,10.26,149.7,149.67,10.26]
[1726809695697,3.3394,149.71,149.67,10.26]
[1726809695895,10.26,149.7,149.67,10.26]
[1726809696099,10.26,149.69,149.61,7.0132]
[1726809696303,10.26,149.69,149.65,10.26]
[1726809696596,10.26,149.69,149.65,13.6004]
[1726809696903,10.26,149.68,149.61,7.0132]
[1726809697301,10.26,149.68,149.63,10.26]
[1726809697896,10.26,149.67,149.63,10.26]
[1726809698098,10.26,149.67,149.63,13.6009]
[1726809698803,10.26,149.69,149.61,7.0132]
[1726809699007,267.18561913,149.75,149.64,10.26]
[1726809699207,10.26,149.68,149.64,13.6007]
[1726809699408,267.18561913,149.75,149.65,10.26]
[1726809699600,3.3397,149.69,149.64,13.6007]
[1726809699796,267.18561913,149.75,149.64,10.26]
[1726809700000,10.26,149.68,149.64,10.26]
[1726809700605,10.26,149.68,149.64,13.6006]
[1726809701303,2.5105,149.74,149.61,2.3596]
[1726809701304,4.9724,149.74,149.61,2.3596]
[1726809701604,4.9724,149.74,149.54,133.68]
[1726809701605,10.26,149.62,149.55,4.7884]
[1726809701809,10.26,149.59,149.54,10.26]
[1726809702105,10.26,149.57,149.48,2.4525]
[1726809702302,10.26,149.57,149.52,13.6033]
[1726809702507,10.26,149.57,149.52,10.26]
[1726809702697,10.26,149.57,149.54,10.26]
[1726809702901,3.40061661,149.58,149.53,3.3432]
[1726809703096,3.40061661,149.58,149.49,4.8032]
[1726809703097,10.26,149.57,149.54,10.26]
[1726809703306,10.26,149.56,149.51,10.26]
[1726809703508,10.26,149.56,149.49,8.10924365]
[1726809703702,3.38155416,149.71,149.48,2.4525]
[1726809703703,6.6796,149.69,149.48,2.4525]
[1726809703902,16.07,149.55,149.48,2.4525]
[1726809704106,3.35115796,149.54,149.48,2.4525]
[1726809704304,16.07,149.53,149.48,2.4525]
[1726809704502,16.07,149.5,149.42,3.29107266]
[1726809704706,16.07,149.5,149.43,3.3453]
[1726809704707,3.29809772,149.49,149.43,3.3453]
[1726809704898,3.29809772,149.49,149.41,2.4653]
[1726809705098,16.07,149.5,149.41,2.4653]
[1726809705308,16.07,149.6,149.41,2.4653]
[1726809705601,16.07,149.5,149.41,5.86676644]
[1726809705802,16.07,149.49,149.43,3.3455]
[1726809706109,16.07,149.47,149.41,2.4653]
[1726809707103,16.07,149.43,149.16,2.74341339]
[1726809707299,19.3691013,149.43,149.35,2.4653]
[1726809707499,19.3691013,149.43,149.37,3.3468]
[1726809707703,19.3691013,149.43,149.35,2.4653]
[1726809707907,16.07,149.41,149.35,2.4653]
[1726809708409,2.5481,149.46,149.35,2.4653]
[1726809708606,16.07,149.4,149.35,2.4653]
[1726809708797,3.34259746,149.39,149.32,2.3349]
[1726809708999,16.07,149.38,149.32,5.6829]
[1726809709203,16.07,149.34,149.16,136.50341339]
[1726809709407,5.88902349,149.38,149.26,2.3349]
[1726809709600,16.07,149.35,149.26,2.3349]
[1726809710813,19.4175,149.35,149.28,3.3487]
[1726809711016,16.07,149.34,149.28,3.3487]
[1726809711612,16.07,149.34,149.29,3.3486]
[1726809712012,3.3471,149.36,149.26,2.3349]
[1726809712013,29.0971,149.36,149.26,2.3349]
[1726809712313,2.4741,149.44,149.32,25.75]
[1726809712514,5.77036482,149.44,149.33,2.4201]
[1726809712707,2.4741,149.44,149.35,3.3473]
[1726809713201,2.4741,149.44,149.33,2.4201]
[1726809713202,25.75,149.42,149.33,2.4201]
[1726809713401,25.75,149.4,149.33,2.4201]
[1726809714205,25.75,149.4,149.33,5.7676]
[1726809714406,5.8856001,149.44,149.33,5.7676]
[1726809714615,25.75,149.43,149.33,2.4201]
[1726809715113,25.75,149.4,149.3,25.75]
[1726809715510,3.3464,149.39,149.3,25.75]
[1726809716105,3.3466,149.38,149.3,25.75]
[1726809716310,25.75,149.39,149.27,28.1756]
[1726809716713,3.347,149.37,149.31,3.3481]
[1726809717019,3.347,149.37,149.27,28.1756]
[1726809717216,25.75,149.39,149.27,28.1756]
[1726809717418,5.8856001,149.44,149.27,28.1756]
[1726809717716,25.75,149.4,149.27,28.1756]
[1726809717914,3.3466,149.38,149.31,3.348]
[1726809718516,25.75,149.38,149.27,28.1756]
[1726809718721,2.3799,149.37,149.27,2.4256]
[1726809718918,3.42008636,149.36,149.27,2.4256]
[1726809720416,6.76718636,149.36,149.3,3.3482]
[1726809720617,3.3471,149.36,149.3,3.3482]
[1726809720926,29.17199035,149.36,149.27,2.4256]
[1726809721218,2.3222,149.35,149.27,2.4256]
[1726809721612,2.3222,149.35,149.31,3.3482]
[1726809721820,2.3799,149.37,149.3,25.75]
[1726809722120,3.3468,149.37,149.32,3.3479]
[1726809723120,3.3467,149.38,149.32,3.3479]
[1726809723521,25.75,149.4,149.3,25.75]
[1726809723719,29.0963,149.4,149.3,25.75]
[1726809723920,3.3463,149.4,149.3,25.75]
[1726809724119,3.3463,149.4,149.34,3.3474]
[1726809724521,3.3465,149.39,149.34,3.3474]
[1726809724717,3.3465,149.39,149.33,3.3477]
[1726809725320,30.5137,149.43,149.32,25.75]
[1726809725516,4.7637,149.43,149.34,25.75]
[1726809725718,3.4115001,149.44,149.37,25.75]
[1726809725917,4.6785,149.49,149.37,25.75]
[1726809726123,4.6785,149.49,149.35,2.4697]
[1726809726124,4.6785,149.49,149.39,25.75]
[1726809726525,4.6785,149.49,149.37,25.75]
[1726809727827,3.3449,149.46,149.37,25.75]
[1726809728229,4.6785,149.49,149.37,25.75]
[1726809728423,4.6785,149.49,149.39,25.75]
[1726809729226,25.75,149.52,149.42,25.75]
[1726809729424,3.2790297,149.53,149.42,25.75]
[1726809729621,4.6736,149.58,149.43,4.8101]
[1726809729934,25.75,149.51,149.43,2.3646]
[1726809730424,25.75,149.48,149.37,28.1955]
[1726809730627,25.75,149.48,149.41,3.3458]
[1726809730628,6.72523659,149.47,149.41,3.3458]
[1726809730926,25.75,149.48,149.41,3.3458]
[1726809731127,29.04629639,149.48,149.41,3.3458]
[1726809731720,29.04629639,149.48,149.4,3.3461]
[1726809731920,25.75,149.46,149.38,2.3646]
[1726809732124,3.3452,149.45,149.39,3.3462]
[1726809732330,3.36524116,149.44,149.39,3.3462]
[1726809732725,3.3455,149.44,149.38,5.7112]
[1726809733431,3.3451,149.45,149.39,3.3464]
[1726809733631,3.3451,149.45,149.38,2.3646]
[1726809734028,3.3451,149.45,149.39,3.3463]
[1726809734729,3.37260419,149.46,149.37,25.75]
[1726809734933,25.75,149.48,149.36,4.7524]
[1726809735135,29.03100174,149.48,149.36,4.7524]
[1726809735327,3.3451,149.45,149.39,3.3462]
[1726809735724,3.3449,149.46,149.36,4.7524]
[1726809736022,29.03100174,149.48,149.36,4.7524]
[1726809736229,3.345,149.46,149.36,4.7524]
[1726809736430,29.03100174,149.48,149.37,25.75]
[1726809737636,3.3446,149.47,149.42,3.3456]
[1726809739941,29.03100174,149.48,149.4,3.346]
[1726809740234,27.11020935,149.6,149.39,25.75]
[1726809740436,27.11020935,149.6,149.46,3.3448]
[1726809740437,3.3439,149.51,149.46,3.3448]
[1726809740637,3.30856542,149.51,149.43,2.4406]
[1726809740939,33.7485,149.54,149.43,2.4406]
[1726809741142,4.6553,149.54,149.45,25.75]
[1726809741848,4.6553,149.54,149.49,3.344]
[1726809742050,30.4053,149.54,149.44,2.3176]
[1726809742348,3.3433,149.53,149.47,3.3444]
[1726809742645,30.4053,149.54,149.43,2.4406]
[1726809742646,25.75,149.51,149.43,2.4406]
[1726809742841,29.10475947,149.51,149.43,2.4406]
[1726809743449,3.35475947,149.51,149.43,2.4406]
[1726809743643,25.75,149.53,149.43,2.4406]
[1726809743947,29.0934,149.53,149.43,2.4406]
[1726809744148,4.6553,149.54,149.43,28.1906]
[1726809744149,3.30365942,149.52,149.43,28.1906]
[1726809744344,25.75,149.55,149.44,2.295]
[1726809744947,3.3432,149.54,149.44,2.295]
[1726809745439,3.3433,149.53,149.44,2.295]
[1726809746249,3.3433,149.53,149.48,3.3442]
[1726809747051,3.3435,149.52,149.47,3.3445]
[1726809747444,3.39970015,149.51,149.47,3.3445]
[1726809747642,25.75,149.53,149.44,2.295]
[1726809749451,3.3437,149.51,149.46,3.3447]
[1726809749648,3.39848199,149.5,149.46,3.3447]
[1726809749946,25.75,149.55,149.46,25.75]
[1726809750748,3.3431,149.54,149.49,3.344]
[1726809750946,25.75,149.55,149.49,3.344]
[1726809751150,3.3432,149.54,149.49,3.344]
[1726809751948,25.75,149.55,149.49,3.344]
[1726809752655,3.3432,149.54,149.49,3.344]
[1726809753961,3.3433,149.53,149.49,3.344]
[1726809754257,25.75,149.55,149.44,2.295]
[1726809754753,25.75,149.55,149.46,25.75]
[1726809755654,3.27341777,149.6,149.48,25.75]
[1726809755854,640.7401,149.61,149.5,25.75]
[1726809756060,644.01099279,149.61,149.5,25.75]
[1726809756759,25.75,149.59,149.52,3.3435]
[1726809757750,3.3422,149.58,149.53,3.3432]
[1726809757955,2.4439,149.6,149.49,4.8437]
[1726809758361,3.342,149.59,149.54,3.3429]
[1726809758660,3.342,149.59,149.49,4.8437]
[1726809759560,5.7856,149.6,149.5,25.75]
[1726809759759,2.4439,149.6,149.56,3.3426]
[1726809760961,618.26099279,149.61,149.52,25.75]
[1726809761463,621.60249279,149.61,149.52,25.75]
[1726809762258,3.3417,149.6,149.51,2.4445]
[1726809762564,618.26099279,149.61,149.51,2.4445]
[1726809762757,3.3417,149.6,149.55,3.3426]
[1726809762956,3.3417,149.6,149.51,2.4445]
[1726809763561,618.26099279,149.61,149.51,2.4445]
[1726809763760,25.75,149.6,149.51,2.4445]
[1726809764559,3.3423,149.58,149.53,3.3433]
[1726809764760,644.01099279,149.61,149.51,2.4445]
[1726809765460,618.26099279,149.61,149.51,2.4445]
[1726809765655,644.01099279,149.61,149.51,2.4445]
[1726809766064,618.26099279,149.61,149.51,2.4445]
[1726809766562,618.26099279,149.61,149.52,25.75]
[1726809767665,618.26099279,149.61,149.57,3.3422]
[1726809768261,618.26099279,149.61,149.56,3.3425]
[1726809769061,634.31099279,149.61,149.55,3.3428]
[1726809769558,3.3419,149.59,149.52,16.05]
[1726809769759,634.31099279,149.61,149.52,16.05]
[1726809770757,3.342,149.59,149.54,3.343]
[1726809770958,16.05,149.58,149.51,2.4445]
[1726809771161,19.3922,149.58,149.54,3.343]
[1726809771363,19.3922,149.58,149.51,2.4445]
[1726809771967,16.05,149.58,149.51,2.4445]
[1726809772368,16.05,149.58,149.54,3.3429]
[1726809773067,16.05,149.58,149.51,2.4445]
[1726809773666,3.3425,149.57,149.53,3.3432]
[1726809774263,19.3922,149.58,149.53,3.3432]
[1726809774765,3.3425,149.57,149.51,2.4445]
[1726809775069,16.05,149.58,149.51,2.4445]
[1726809775371,19.3922,149.58,149.53,3.3432]
[1726809776361,16.05,149.6,149.51,18.4945]
[1726809776968,16.05,149.58,149.51,2.4445]
[1726809777772,618.26099279,149.61,149.49,20.8937]
[1726809777972,16.05,149.59,149.49,20.8937]
[1726809778873,3.3422,149.58,149.53,3.3433]
[1726809781372,16.05,149.57,149.52,3.3434]
[1726809781577,16.05,149.56,149.49,2.4899]
[1726809781977,19.3932,149.54,149.46,18.4675]
[1726809782182,16.05,149.54,149.46,2.4175]
[1726809783174,19.3936,149.52,149.45,2.2882]
[1726809783478,19.46908317,149.52,149.45,2.2882]
[1726809783670,19.46908317,149.52,149.47,3.3444]
[1726809783873,3.41908317,149.52,149.45,2.2882]
[1726809784073,16.05,149.5,149.45,2.2882]
[1726809784281,3.31705594,149.49,149.45,2.2882]
[1726809785986,3.31705594,149.49,149.46,3.3448]
[1726809786679,16.05,149.5,149.46,3.3448]
[1726809786882,16.05,149.48,149.41,2.368]
[1726809787080,16.05,149.48,149.41,4.0219]
[1726809787475,19.3944,149.48,149.43,3.3454]
[1726809787678,3.42411926,149.47,149.43,3.3454]
[1726809787871,3.42411926,149.47,149.41,4.0219]
[1726809788277,16.05,149.48,149.41,4.0219]
[1726809788577,3.3446,149.47,149.41,4.0219]
[1726809788777,6.77309631,149.47,149.41,4.0219]
[1726809788974,6.77309631,149.47,149.41,1.6539]
[1726809789278,3.42849631,149.47,149.41,1.6539]
[1726809789479,16.05,149.48,149.41,1.6539]
[1726809790083,19.32052577,149.48,149.41,1.6539]
[1726809790285,3.3447,149.47,149.42,3.3457]
[1726809791281,19.395,149.46,149.38,2.301]
[1726809791480,16.05,149.46,149.38,2.301]
[1726809791687,16.05,149.46,149.4,3.346]
[1726809791877,19.3949,149.46,149.4,3.346]
[1726809792085,16.05,149.45,149.38,2.301]
[1726809792282,16.05,149.45,149.39,3.3462]
[1726809792786,16.05,149.45,149.35,1.6383]
[1726809792787,3.3458,149.42,149.35,1.6383]
[1726809792984,3.3458,149.42,149.34,1.6632]
[1726809793183,1.7669,149.44,149.33,17.6989]
[1726809793385,16.05,149.41,149.33,1.6489]
[1726809793583,16.05,149.39,149.33,1.6489]
[1726809793779,19.3964,149.39,149.33,4.9964]
[1726809794386,16.05,149.39,149.33,1.6489]
[1726809794785,16.05,149.38,149.24,1.6684]
[1726809794988,16.05,149.38,149.28,16.05]
[1726809795190,19.36815448,149.38,149.28,16.05]
[1726809795390,19.36815448,149.38,149.32,3.3478]
[1726809795795,19.36815448,149.38,149.28,16.05]
[1726809796092,16.05,149.36,149.28,16.05]
[1726809796593,19.3971,149.36,149.3,3.3483]
[1726809796795,22.75544206,149.36,149.3,3.3483]
[1726809797189,19.40834206,149.36,149.26,16.05]
[1726809797395,16.05,149.34,149.25,17.6989]
[1726809797789,3.3478,149.33,149.28,3.3487]
[1726809798295,3.3478,149.33,149.25,17.6989]
[1726809798496,6.68091167,149.33,149.25,17.6989]
[1726809798690,3.33311167,149.33,149.27,16.05]
[1726809798889,19.3971,149.36,149.3,3.3482]
[1726809799090,16.05,149.36,149.3,3.3482]
[1726809799390,16.05,149.34,149.28,3.3488]
[1726809799592,16.05,149.32,149.25,1.6489]
[1726809799891,3.3482,149.31,149.25,1.6489]
[1726809800086,16.05,149.32,149.26,3.3492]
[1726809800496,19.3981,149.32,149.26,3.3492]
[1726809801490,3.3486,149.3,149.2,16.05]
[1726809801694,16.05,149.29,149.2,16.05]
[1726809801897,3.3821396,149.28,149.2,16.05]
[1726809802490,3.3821396,149.28,149.24,3.3496]
[1726809802697,16.05,149.29,149.24,3.3496]
[1726809803295,19.33565062,149.29,149.24,3.3496]
[1726809803801,16.05,149.27,149.24,3.3496]
[1726809804101,16.05,149.27,149.19,16.05]
[1726809804797,25.18716517,149.37,149.17,16.05]
[1726809804798,16.05,149.26,149.17,16.05]
[1726809805002,19.34423945,149.26,149.17,16.05]
[1726809805204,19.34423945,149.26,149.21,3.3504]
[1726809805205,22.69373945,149.26,149.21,3.3504]
[1726809805406,19.34423945,149.26,149.17,16.05]
[1726809806006,3.3497,149.25,149.2,3.3505]
[1726809806207,19.34423945,149.26,149.2,3.3505]
[1726809806603,3.3497,149.25,149.2,3.3505]
[1726809806812,16.05,149.24,149.16,5.0212]
[1726809807505,19.34557994,149.24,149.16,5.0212]
[1726809807709,19.34557994,149.24,149.16,1.7583]
[1726809807710,16.05,149.22,149.16,1.7583]
[1726809808209,19.45875953,149.22,149.16,1.7583]
[1726809808714,19.4007,149.2,149.11,16.05]
[1726809808906,16.05,149.2,149.12,1.7454]
[1726809809211,16.05,149.2,149.15,3.3516]
[1726809809611,19.33037376,149.2,149.15,3.3516]
[1726809809809,19.33037376,149.2,149.16,3.3515]
[1726809811002,3.28037376,149.2,149.15,3.3517]
[1726809811307,16.05,149.19,149.15,3.3517]
[1726809812116,16.05,149.19,149.14,3.352]
[1726809812409,16.05,149.18,149.12,1.7454]
[1726809812813,16.05,149.18,149.13,3.3521]
[1726809813213,16.05,149.18,149.12,1.7454]
[1726809813912,3.27141427,149.19,149.13,16.05]
[1726809814116,16.05,149.23,149.15,16.05]
[1726809814306,22.78910509,149.23,149.18,3.3509]
[1726809814716,19.43910509,149.23,149.15,16.05]
[1726809815411,16.05,149.21,149.13,16.05]
[1726809815613,16.05,149.21,149.12,1.7454]
[1726809815614,16.05,149.19,149.12,1.7454]
[1726809817007,19.401,149.19,149.12,1.7454]
[1726809817415,19.401,149.19,149.14,3.3518]
[1726809818209,19.401,149.19,149.15,3.3518]
[1726809818414,16.05,149.19,149.15,3.3518]
[1726809818612,1.7026,149.21,149.12,1.7454]
[1726809818810,16.05,149.2,149.12,1.7454]
[1726809819217,16.05,149.2,149.15,3.3516]
[1726809819416,16.05,149.18,149.12,1.7454]
[1726809819814,16.05,149.18,149.14,3.3518]
[1726809820318,16.05,149.18,149.12,1.7454]
[1726809821018,16.05,149.18,149.14,3.352]
[1726809821414,19.4012,149.18,149.14,3.352]
[1726809822017,16.05,149.18,149.14,3.352]
[1726809822319,16.05,149.18,149.13,3.3522]
[1726809822519,16.05,149.18,149.12,1.7454]
[1726809823120,16.05,149.18,149.14,3.3519]
[1726809824524,19.4011,149.18,149.14,3.3519]
[1726809824920,16.05,149.17,149.13,3.3521]
[1726809826218,19.4014,149.17,149.12,5.0978]
[1726809826423,16.05,149.17,149.08,3.3271]
[1726809826621,16.05,149.17,149.08,5.9097]
[1726809826821,3.3516,149.16,149.12,3.3524]
[1726809827017,16.05,149.17,149.08,5.9097]
[1726809828826,19.4013,149.17,149.13,3.3522]
[1726809829426,19.4013,149.17,149.12,3.3523]
[1726809829627,19.4013,149.17,149.08,5.9097]
[1726809829823,16.05,149.17,149.13,3.3521]
[1726809830028,16.05,149.17,149.08,5.9097]
[1726809830418,16.05,149.17,149.13,3.3521]
[1726809830624,16.05,149.17,149.08,5.9097]
[1726809831424,19.4014,149.17,149.13,3.3521]
[1726809832421,16.05,149.17,149.13,3.3521]
[1726809834028,16.05,149.17,149.14,3.352]